fUST/lending_fUST_20250113
["ID","MTS","AMOUNT","RATE_DAILY","PERIOD"]
[348711965,1736742639885,-395.0,0.00019342,2]
[348711966,1736742639895,-151.0,0.00019342,2]
[348711967,1736742639904,-198.073014,0.00019352,2]
[348711968,1736742639914,-175.43212914,0.00019352,2]
[348711969,1736742639923,-150.163,0.00019396,2]
[348711970,1736742639932,-275.871,0.00019396,2]
[348711971,1736742639942,-250.0,0.00019396,2]
[348711973,1736742639952,-252.144,0.00019396,2]
[348711974,1736742639961,-251.053135,0.00019396,2]
[348711975,1736742639971,-321.504,0.00019443,2]
[348711976,1736742639981,-502.54391737,0.00019451,2]
[348711977,1736742639991,-341.46944732,0.00019451,2]
[348711978,1736742640000,-206.97593457,0.00019451,2]
[348711980,1736742640009,-168.32248399,0.00019451,2]
[348711981,1736742640019,-500.0,0.00019451,2]
[348711982,1736742640029,-150.11,0.00019452,2]
[348711983,1736742640038,-198.073014,0.00019452,2]
[348711984,1736742640047,-198.073014,0.00019452,2]
[348711985,1736742640056,-198.073014,0.00019452,2]
[348711986,1736742640066,-198.073014,0.00019452,2]
[348711987,1736742640075,-198.073014,0.00019452,2]
[348711988,1736742640085,-198.073013,0.00019452,2]
[348711989,1736742640095,-492.87843123,0.00019452,3]
[348711990,1736742640105,-574.28056762,0.00019452,3]
[348711991,1736742640114,-500.0,0.00019452,3]
[348711992,1736742640124,-462.23578711,0.00019452,3]
[348711993,1736742640133,-151.0,0.00019452,2]
[348711994,1736742640143,-513.7974516,0.00019452,3]
[348711995,1736742640152,-500.0,0.00019452,3]
[348711996,1736742640161,-500.0,0.00019452,3]
[348711997,1736742640171,-514.17489134,0.00019452,3]
[348711998,1736742640180,-3200.4,0.00019452,3]
[348711999,1736742640189,-500.0,0.00019452,3]
[348712000,1736742640199,-500.0,0.00019452,3]
[348712001,1736742640208,-500.0,0.00019452,3]
[348712002,1736742640217,-308.99648245,0.00019452,3]
[348712003,1736742640228,-621.41,0.00019452,3]
[348712004,1736742640237,-500.0,0.00019452,3]
[348712005,1736742640248,-500.0,0.00019452,3]
[348712006,1736742640257,-500.0,0.00019452,3]
[348712007,1736742640267,-500.0,0.00019452,3]
[348712008,1736742640277,-500.0,0.00019452,3]
[348712009,1736742640286,-500.0,0.00019452,3]
[348712010,1736742640296,-500.0,0.00019452,3]
[348712011,1736742640306,-224.96702258,0.00019452,3]
[348712012,1736742640316,-500.0,0.00019452,3]
[348712013,1736742640325,-500.0,0.00019452,3]
[348712014,1736742640335,-500.0,0.00019452,3]
[348712015,1736742640344,-500.0,0.00019452,3]
[348712016,1736742640354,-500.0,0.00019452,3]
[348712017,1736742640364,-500.0,0.00019452,3]
[348712018,1736742640374,-500.0,0.00019452,3]
[348712019,1736742640384,-510.56501372,0.00019452,2]
[348712020,1736742640394,-500.0,0.00019452,3]
[348712021,1736742640403,-500.0,0.00019452,3]
[348712022,1736742640412,-500.0,0.00019452,3]
[348712023,1736742640423,-500.0,0.00019452,3]
[348712024,1736742640434,-500.0,0.00019452,3]
[348712025,1736742640444,-500.0,0.00019452,3]
[348712026,1736742640453,-500.0,0.00019452,3]
[348712027,1736742640463,-500.0,0.00019452,3]
[348712028,1736742640474,-500.0,0.00019452,3]
[348712029,1736742640484,-500.0,0.00019452,3]
[348712030,1736742640493,-500.0,0.00019452,3]
[348712031,1736742640503,-500.0,0.00019452,3]
[348712032,1736742640513,-500.0,0.00019452,3]
[348712033,1736742640523,-500.0,0.00019452,3]
[348712034,1736742640532,-500.0,0.00019452,3]
[348712035,1736742640542,-500.0,0.00019452,3]
[348712036,1736742640551,-151.0,0.00019452,2]
[348712037,1736742640561,-223.348343,0.00019452,2]
[348712038,1736742640571,-500.0,0.00019452,3]
[348712039,1736742640581,-569.03269175,0.00019452,3]
[348712040,1736742640595,-500.0,0.00019452,3]
[348712041,1736742640604,-500.0,0.00019452,3]
[348712042,1736742640614,-500.0,0.00019452,3]
[348712043,1736742640624,-500.0,0.00019452,3]
[348712044,1736742640635,-370.38590956,0.00019452,3]
[348712045,1736742640645,-500.0,0.00019452,3]
[348712046,1736742640655,-4240.46,0.00019452,3]
[348712047,1736742640664,-500.0,0.00019452,3]
[348712048,1736742640674,-500.0,0.00019452,3]
[348712049,1736742640684,-266.61798645,0.00019452,3]
[348712050,1736742640693,-500.0,0.00019452,3]
[348712051,1736742640703,-752.59,0.00019452,3]
[348712052,1736742640712,-500.0,0.00019452,3]
[348712053,1736742640722,-696.22,0.00019452,3]
[348712054,1736742640732,-500.0,0.00019452,3]
[348712055,1736742640742,-3614.08,0.00019452,2]
[348712056,1736742640751,-500.0,0.00019452,3]
[348712057,1736742640760,-2719.54,0.00019452,3]
[348712058,1736742640770,-500.0,0.00019452,3]
[348712059,1736742640780,-2606.23,0.00019452,3]
[348712060,1736742640789,-2148.17,0.00019452,3]
[348712061,1736742640798,-500.0,0.00019452,3]
[348712062,1736742640807,-500.0,0.00019452,3]
[348712063,1736742640817,-553.04,0.00019452,3]
[348712064,1736742640827,-500.0,0.00019452,3]
[348712065,1736742640839,-500.0,0.00019452,3]
[348712066,1736742640849,-500.0,0.00019452,3]
[348712067,1736742640858,-500.0,0.00019452,3]
[348712068,1736742640867,-500.0,0.00019452,3]
[348712069,1736742640876,-504.17958234,0.00019452,3]
[348712070,1736742640886,-500.0,0.00019452,3]
[348712071,1736742640895,-500.0,0.00019452,3]
[348712072,1736742640905,-500.0,0.00019452,3]
[348712073,1736742640915,-500.0,0.00019452,3]
[348712074,1736742640924,-500.0,0.00019452,3]
[348712075,1736742640934,-500.0,0.00019452,3]
[348712076,1736742640944,-500.0,0.00019452,3]
[348712077,1736742640954,-500.0,0.00019452,3]
[348712078,1736742640963,-500.0,0.00019452,3]
[348712079,1736742640972,-500.0,0.00019452,3]
[348712080,1736742640982,-500.0,0.00019452,3]
[348712081,1736742640991,-1222.34,0.00019452,3]
[348712082,1736742641000,-500.0,0.00019452,3]
[348712083,1736742641010,-500.0,0.00019452,3]
[348712084,1736742641019,-523.99126785,0.00019452,3]
[348712085,1736742641029,-511.26589446,0.00019452,3]
[348712086,1736742641038,-500.0,0.00019452,3]
[348712087,1736742641048,-600.49,0.00019452,3]
[348712088,1736742641058,-500.0,0.00019452,3]
[348712089,1736742641068,-500.0,0.00019452,3]
[348712090,1736742641078,-1527.78,0.00019452,3]
[348712091,1736742641089,-500.0,0.00019452,3]
[348712092,1736742641099,-1192.93,0.00019452,3]
[348712093,1736742641108,-500.0,0.00019452,3]
[348712094,1736742641118,-1000.0,0.00019452,7]
[348712095,1736742641127,-500.0,0.00019452,3]
[348712096,1736742641136,-445.55243614,0.00019452,3]
[348712097,1736742641146,-500.0,0.00019452,3]
[348712098,1736742641155,-500.0,0.00019452,3]
[348712099,1736742641165,-500.0,0.00019452,3]
[348712100,1736742641175,-500.0,0.00019452,3]
[348712101,1736742641185,-3366.56,0.00019452,3]
[348712102,1736742641195,-952.18,0.00019452,3]
[348712103,1736742641205,-500.0,0.00019452,3]
[348712104,1736742641215,-506.22148111,0.00019452,3]
[348712105,1736742641226,-500.0,0.00019452,3]
[348712106,1736742641236,-500.0,0.00019452,3]
[348712107,1736742641245,-500.0,0.00019452,3]
[348712108,1736742641255,-500.0,0.00019452,3]
[348712109,1736742641264,-500.0,0.00019452,3]
[348712110,1736742641273,-500.0,0.00019452,3]
[348712111,1736742641282,-1381.4,0.00019452,3]
[348712112,1736742641292,-500.0,0.00019452,3]
[348712113,1736742641301,-606.08830697,0.00019452,3]
[348712114,1736742641310,-500.0,0.00019452,3]
[348712115,1736742641319,-500.0,0.00019452,3]
[348712116,1736742641329,-165.960026,0.00019462,3]
[348712117,1736742641340,-500.0,0.00019473,2]
[348712118,1736742641349,-500.0,0.00019473,2]
[348712119,1736742641359,-500.0,0.00019473,2]
[348712120,1736742641369,-500.0,0.00019473,2]
[348712121,1736742641378,-266.57562572,0.00019473,2]
[348712122,1736742641387,-500.0,0.00019473,2]
[348712123,1736742641397,-175.43212914,0.00019489,2]
[348712124,1736742641407,-192.0,0.00019596,2]
[348712125,1736742641417,-153.0,0.00019616,2]
[348712126,1736742641429,-153.0,0.00019616,2]
[348712127,1736742641439,-153.0,0.00019616,2]
[348712128,1736742641448,-153.0,0.00019616,2]
[348712129,1736742641458,-175.43212914,0.00019626,2]
[348712130,1736742641469,-3000.0,0.00019626,2]
[348712131,1736742641479,-150.11,0.00019726,2]
[348712132,1736742641489,-500.0,0.00019726,3]
[348712133,1736742641500,-500.0,0.00019726,3]
[348712134,1736742641509,-500.0,0.00019726,3]
[348712135,1736742641519,-3200.4,0.00019726,3]
[348712136,1736742641528,-500.0,0.00019726,3]
[348712137,1736742641537,-500.0,0.00019726,3]
[348712138,1736742641547,-500.0,0.00019726,3]
[348712139,1736742641557,-621.41,0.00019726,3]
[348712140,1736742641566,-500.0,0.00019726,3]
[348712141,1736742641575,-500.0,0.00019726,3]
[348712142,1736742641584,-500.0,0.00019726,3]
[348712143,1736742641594,-500.0,0.00019726,3]
[348712144,1736742641603,-500.0,0.00019726,3]
[348712145,1736742641613,-500.0,0.00019726,3]
[348712146,1736742641622,-500.0,0.00019726,3]
[348712147,1736742641631,-500.0,0.00019726,3]
[348712148,1736742641720,-500.0,0.00019726,3]
[348712149,1736742641731,-500.0,0.00019726,3]
[348712150,1736742641741,-424.01414976,0.00019726,3]
[348712151,1736742641751,-346.89064334,0.00019726,3]
[348712152,1736742641761,-511.59644601,0.00019726,3]
[348712153,1736742641771,-500.0,0.00019726,3]
[348712154,1736742641780,-518.02986836,0.00019726,3]
[348712155,1736742641789,-500.0,0.00019726,3]
[348712156,1736742641799,-274.6043201,0.00019726,3]
[348712157,1736742641808,-530.34779436,0.00019726,3]
[348712158,1736742641818,-190.46494328,0.00019726,3]
[348712159,1736742641827,-500.0,0.00019726,3]
[348712160,1736742641837,-500.0,0.00019726,3]
[348712161,1736742641847,-500.0,0.00019726,3]
[348712162,1736742641857,-500.0,0.00019726,3]
[348712163,1736742641866,-500.0,0.00019726,3]
[348712164,1736742641876,-500.0,0.00019726,3]
[348712165,1736742641886,-500.0,0.00019726,3]
[348712166,1736742641896,-500.0,0.00019726,3]
[348712167,1736742641905,-500.0,0.00019726,3]
[348712168,1736742641915,-500.0,0.00019726,3]
[348712169,1736742641924,-511.30990808,0.00019726,3]
[348712170,1736742641933,-500.0,0.00019726,3]
[348712171,1736742641943,-500.0,0.00019726,3]
[348712172,1736742641952,-500.0,0.00019726,3]
[348712173,1736742641961,-500.0,0.00019726,3]
[348712174,1736742641971,-500.0,0.00019726,3]
[348712175,1736742641981,-500.0,0.00019726,3]
[348712176,1736742641990,-4240.46,0.00019726,3]
[348712177,1736742642000,-500.0,0.00019726,3]
[348712178,1736742642009,-500.0,0.00019726,3]
[348712179,1736742642019,-500.0,0.00019726,3]
[348712180,1736742642028,-752.59,0.00019726,3]
[348712181,1736742642038,-500.0,0.00019726,3]
[348712182,1736742642048,-696.22,0.00019726,3]
[348712183,1736742642058,-500.0,0.00019726,3]
[348712184,1736742642067,-3614.08,0.00019726,2]
[348712185,1736742642077,-500.0,0.00019726,3]
[348712186,1736742642087,-2719.54,0.00019726,3]
[348712187,1736742642097,-500.0,0.00019726,3]
[348712188,1736742642106,-2606.23,0.00019726,3]
[348712189,1736742642115,-2148.17,0.00019726,3]
[348712190,1736742642125,-500.0,0.00019726,3]
[348712191,1736742642135,-153.54615911,0.00019726,3]
[348712192,1736742642145,-553.04,0.00019726,3]
[348712193,1736742642154,-500.0,0.00019726,3]
[348712194,1736742642164,-500.0,0.00019726,3]
[348712195,1736742642173,-523.76583136,0.00019726,3]
[348712196,1736742642183,-500.0,0.00019726,3]
[348712197,1736742642192,-500.0,0.00019726,3]
[348712198,1736742642202,-500.0,0.00019726,3]
[348712199,1736742642212,-500.0,0.00019726,3]
[348712200,1736742642221,-500.0,0.00019726,3]
[348712201,1736742642230,-500.0,0.00019726,3]
[348712202,1736742642239,-500.0,0.00019726,3]
[348712203,1736742642248,-500.0,0.00019726,3]
[348712204,1736742642257,-500.0,0.00019726,3]
[348712205,1736742642266,-500.0,0.00019726,3]
[348712206,1736742642276,-500.0,0.00019726,3]
[348712207,1736742642286,-353.97066095,0.00019726,3]
[348712208,1736742642295,-500.0,0.00019726,3]
[348712209,1736742642305,-1222.34,0.00019726,3]
[348712210,1736742642315,-500.0,0.00019726,3]
[348712211,1736742642324,-500.0,0.00019726,3]
[348712212,1736742642334,-500.0,0.00019726,3]
[348712213,1736742642345,-600.49,0.00019726,3]
[348712214,1736742642354,-500.0,0.00019726,3]
[348712215,1736742642362,-500.0,0.00019726,3]
[348712216,1736742642372,-1527.78,0.00019726,3]
[348712217,1736742642382,-500.0,0.00019726,3]
[348712218,1736742642392,-1192.93,0.00019726,3]
[348712219,1736742642401,-500.0,0.00019726,3]
[348712220,1736742642412,-1000.0,0.00019726,7]
[348712222,1736742642423,-500.0,0.00019726,3]
[348712223,1736742642436,-500.0,0.00019726,3]
[348712224,1736742642446,-500.0,0.00019726,3]
[348712225,1736742642455,-500.0,0.00019726,3]
[348712226,1736742642465,-500.0,0.00019726,3]
[348712227,1736742642475,-3366.56,0.00019726,3]
[348712228,1736742642484,-952.18,0.00019726,3]
[348712229,1736742642493,-500.0,0.00019726,3]
[348712230,1736742642504,-500.0,0.00019726,3]
[348712231,1736742642513,-551.86920039,0.00019726,3]
[348712232,1736742642523,-500.0,0.00019726,3]
[348712233,1736742642533,-500.0,0.00019726,3]
[348712234,1736742642542,-500.0,0.00019726,3]
[348712235,1736742642552,-500.0,0.00019726,3]
[348712236,1736742642561,-1381.4,0.00019726,3]
[348712237,1736742642571,-500.0,0.00019726,3]
[348712238,1736742642581,-500.0,0.00019726,3]
[348712239,1736742642591,-500.0,0.00019726,3]
[348712240,1736742642600,-1000.0,0.0001974,2]
[348712241,1736742642609,-1011.97949282,0.00019747,2]
[348712242,1736742642619,-429.21996037,0.00019773,2]
[348712243,1736742642628,-500.0,0.00019773,2]
[348712245,1736742642638,-564.33731222,0.00019773,2]
[348712247,1736742642648,-500.0,0.00019773,2]
[348712249,1736742642658,-500.0,0.00019773,2]
[348712250,1736742642667,-151.0,0.000198,2]
[348712251,1736742642678,-151.0,0.000198,2]
[348712252,1736742642687,-151.0,0.000198,2]
[348712254,1736742642697,-151.0,0.000198,2]
[348712255,1736742642706,-403.63815872,0.00019843,2]
[348712256,1736742642715,-1000.0,0.00019888,2]
[348712257,1736742642726,-2008.38,0.000199,2]
[348712258,1736742642736,-151.0,0.000199,2]
[348712259,1736742642746,-151.0,0.000199,2]
[348712260,1736742642756,-151.0,0.000199,2]
[348712261,1736742642765,-1196.34144759,0.000199,2]
[348712262,1736742642775,-1000.0,0.00019901,2]
[348712263,1736742642785,-1000.0,0.00019955,2]
[348712264,1736742642795,-1141.73131527,0.0001997,2]
[348712265,1736742642804,-501.53792323,0.00019973,2]
[348712267,1736742642813,-1000.0,0.00019975,2]
[348712268,1736742642823,-6672.58904317,0.0001998,2]
[348712269,1736742642832,-5716.6127601,0.0001999,3]
[348712270,1736742642843,-202.66772879,0.0002,2]
[348712271,1736742642852,-397.09570826,0.0002,2]
[348712272,1736742642861,-2000.5635779,0.0002,2]
[348712273,1736742642870,-123156.78,0.0002,5]
[348712274,1736742642880,-150.0,0.0002,2]
[348712275,1736742642889,-378866.19715481,0.0002,5]
[348712276,1736742642898,-1719.0,0.0002,3]
[348712277,1736742642907,-1716.0,0.0002,3]
[348712279,1736742642917,-1716.0,0.0002,3]
[348712280,1736742642926,-1716.0,0.0002,3]
[348712281,1736742642936,-110681.72642605,0.0002,5]
[348712282,1736742642945,-1308.0,0.0002,3]
[348712283,1736742642955,-1307.0,0.0002,3]
[348712284,1736742642964,-1307.0,0.0002,3]
[348712285,1736742642974,-1307.0,0.0002,3]
[348712286,1736742642984,-365.0,0.0002,3]
[348712287,1736742642994,-365.0,0.0002,3]
[348712288,1736742643003,-6390.0,0.0002,2]
[348712289,1736742643012,-300.0,0.0002,8]
[348712290,1736742643022,-1817.77071144,0.0002,2]
[348712291,1736742643119,-366.07928856,0.0002,2]
[348712292,1736742643129,-500.0,0.0002,3]
[348712293,1736742643138,-500.0,0.0002,3]
[348712294,1736742643148,-500.0,0.0002,3]
[348712295,1736742643159,-3200.4,0.0002,3]
[348712296,1736742643169,-500.0,0.0002,3]
[348712297,1736742643179,-500.0,0.0002,3]
[348712298,1736742643189,-500.0,0.0002,3]
[348712299,1736742643199,-621.41,0.0002,3]
[348712300,1736742643209,-500.0,0.0002,3]
[348712301,1736742643219,-500.0,0.0002,3]
[348712302,1736742643229,-500.0,0.0002,3]
[348712303,1736742643239,-500.0,0.0002,3]
[348712304,1736742643248,-500.0,0.0002,3]
[348712305,1736742643258,-500.0,0.0002,3]
[348712306,1736742643268,-500.0,0.0002,3]
[348712307,1736742643277,-500.0,0.0002,3]
[348712308,1736742643287,-520.53414045,0.0002,3]
[348712309,1736742643296,-500.0,0.0002,3]
[348712310,1736742643306,-500.0,0.0002,3]
[348712311,1736742643316,-500.0,0.0002,3]
[348712312,1736742643326,-500.0,0.0002,3]
[348712313,1736742643337,-500.0,0.0002,3]
[348712314,1736742643347,-500.0,0.0002,3]
[348712315,1736742643357,-500.0,0.0002,3]
[348712316,1736742643367,-521.31602364,0.0002,3]
[348712317,1736742643376,-500.0,0.0002,3]
[348712318,1736742643385,-500.0,0.0002,3]
[348712319,1736742643395,-500.0,0.0002,3]
[348712320,1736742643477,-500.0,0.0002,3]
[348712321,1736742643499,-500.0,0.0002,3]
[348712322,1736742643509,-500.0,0.0002,3]
[348712323,1736742643519,-500.0,0.0002,3]
[348712324,1736742643529,-500.0,0.0002,3]
[348712325,1736742643539,-500.0,0.0002,3]
[348712326,1736742643548,-1627.288577,0.0002,2]
[348712327,1736742643558,-500.0,0.0002,3]
[348712328,1736742643567,-150.369565,0.0002,2]
[348712329,1736742643577,-235.72394973,0.0002,3]
[348712330,1736742643587,-4240.46,0.0002,3]
[348712331,1736742643597,-500.0,0.0002,3]
[348712332,1736742643607,-500.0,0.0002,3]
[348712333,1736742643616,-500.0,0.0002,3]
[348712334,1736742643625,-752.59,0.0002,3]
[348712335,1736742643635,-500.0,0.0002,3]
[348712336,1736742643645,-150.237231,0.0002,2]
[348712337,1736742643654,-696.22,0.0002,3]
[348712338,1736742643664,-238.13558618,0.0002,3]
[348712339,1736742643674,-3614.08,0.0002,2]
[348712340,1736742643683,-500.0,0.0002,3]
[348712341,1736742643692,-2719.54,0.0002,3]
[348712342,1736742643702,-500.0,0.0002,3]
[348712343,1736742643711,-1643.75867988,0.0002,3]
[348712352,1736742645941,-17625.7,0.00019178,2]
[348712353,1736742645953,-150.544,0.0001926,2]
[348712354,1736742645963,-17625.7,0.00019452,3]
[348712355,1736742645973,-17625.7,0.00019726,3]
[348712356,1736742645982,-962.47132012,0.0002,3]
[348712357,1736742645991,-2148.17,0.0002,3]
[348712358,1736742646000,-500.0,0.0002,3]
[348712359,1736742646009,-553.04,0.0002,3]
[348712360,1736742646018,-500.0,0.0002,3]
[348712361,1736742646029,-500.0,0.0002,3]
[348712362,1736742646040,-500.0,0.0002,3]
[348712363,1736742646050,-500.0,0.0002,3]
[348712364,1736742646059,-500.0,0.0002,3]
[348712365,1736742646068,-500.0,0.0002,3]
[348712366,1736742646077,-500.0,0.0002,3]
[348712367,1736742646086,-500.0,0.0002,3]
[348712368,1736742646095,-500.0,0.0002,3]
[348712369,1736742646104,-500.0,0.0002,3]
[348712370,1736742646113,-500.0,0.0002,3]
[348712371,1736742646123,-500.0,0.0002,3]
[348712372,1736742646134,-500.0,0.0002,3]
[348712373,1736742646144,-513.2080948,0.0002,3]
[348712374,1736742646154,-1222.34,0.0002,3]
[348712375,1736742646165,-500.0,0.0002,3]
[348712376,1736742646174,-500.0,0.0002,3]
[348712377,1736742646183,-500.0,0.0002,3]
[348712378,1736742646193,-600.49,0.0002,3]
[348712379,1736742646202,-500.0,0.0002,3]
[348712380,1736742646211,-500.0,0.0002,3]
[348712381,1736742646221,-1527.78,0.0002,3]
[348712382,1736742646230,-500.0,0.0002,3]
[348712383,1736742646239,-1192.93,0.0002,3]
[348712384,1736742646249,-500.0,0.0002,3]
[348712385,1736742646258,-1000.0,0.0002,7]
[348712386,1736742646267,-500.0,0.0002,3]
[348712387,1736742646277,-500.0,0.0002,3]
[348712388,1736742646286,-500.0,0.0002,3]
[348712389,1736742646296,-500.0,0.0002,3]
[348712390,1736742646307,-152.66664768,0.0002,3]
[348712391,1736742646317,-2798.94152523,0.0002,3]
[348712394,1736743113562,228.740862,0.00013973,2]
[348712446,1736743832520,-172.3778615,0.0001854,2]
[348712448,1736743832530,-216.50417679,0.000189,2]
[348712450,1736743832539,-613.441,0.00019,2]
[348712452,1736743832548,-163.98376503,0.00019078,2]
[348712454,1736743832557,-764.34375192,0.00019165,2]
[348712456,1736743832567,-300.0,0.00019176,2]
[348712458,1736743832577,-154.46,0.00019177,2]
[348712460,1736743832586,-500.0,0.00019177,2]
[348712462,1736743832595,-585.50876194,0.00019177,2]
[348712464,1736743832605,-500.0,0.00019177,2]
[348712466,1736743832614,-500.0,0.00019177,2]
[348712468,1736743832624,-500.0,0.00019177,2]
[348712470,1736743832638,-500.0,0.00019177,2]
[348712472,1736743832647,-180.97250265,0.00019177,2]
[348712474,1736743832656,-500.0,0.00019177,2]
[348712476,1736743832666,-286.25462299,0.00019177,2]
[348712478,1736743832675,-500.0,0.00019177,2]
[348712480,1736743832684,-500.0,0.00019177,2]
[348712482,1736743832693,-500.0,0.00019177,2]
[348712484,1736743832703,-500.0,0.00019177,2]
[348712486,1736743832713,-500.0,0.00019177,2]
[348712488,1736743832721,-500.0,0.00019177,2]
[348712490,1736743832730,-500.0,0.00019178,2]
[348712492,1736743832740,-500.0,0.00019178,2]
[348712494,1736743832749,-3533.72,0.00019178,2]
[348712496,1736743832758,-115.35824195,0.00019178,2]
[348712503,1736743832813,-384.64175805,0.00019178,2]
[348712505,1736743832822,-1814.0367899,0.00019178,2]
[348712891,1736743838082,-131.1932101,0.00019178,2]
[348712893,1736743838092,-500.0,0.00019178,2]
[348712895,1736743838102,-305.28023407,0.00019178,2]
[348712897,1736743838111,-500.0,0.00019178,2]
[348712899,1736743838120,-538.67,0.00019178,2]
[348712901,1736743838131,-312.96779325,0.00019178,2]
[348712903,1736743838140,-500.0,0.00019178,2]
[348712905,1736743838149,-500.0,0.00019178,2]
[348712907,1736743838160,-500.0,0.00019178,2]
[348712909,1736743838169,-500.0,0.00019178,2]
[348712911,1736743838179,-500.0,0.00019178,2]
[348712913,1736743838188,-500.0,0.00019178,2]
[348712915,1736743838198,-500.0,0.00019178,2]
[348712917,1736743838208,-500.0,0.00019178,2]
[348712919,1736743838218,-500.0,0.00019178,2]
[348712922,1736743838228,-500.0,0.00019178,2]
[348712923,1736743838237,-500.0,0.00019178,2]
[348712926,1736743838247,-500.0,0.00019178,2]
[348712928,1736743838257,-500.0,0.00019178,2]
[348712930,1736743838266,-524.97101748,0.00019178,2]
[348712932,1736743838275,-500.0,0.00019178,2]
[348712934,1736743838285,-500.0,0.00019178,2]
[348712936,1736743838295,-378.83138281,0.00019178,2]
[348713144,1736743840271,-121.16861719,0.00019178,2]
[348713146,1736743840281,-500.0,0.00019178,2]
[348713148,1736743840290,-500.0,0.00019178,2]
[348713150,1736743840299,-500.0,0.00019178,2]
[348713153,1736743840309,-500.0,0.00019178,2]
[348713155,1736743840318,-313.10708425,0.00019178,2]
[348713157,1736743840327,-500.0,0.00019178,2]
[348713158,1736743840337,-500.0,0.00019178,2]
[348713160,1736743840347,-2975.49,0.00019178,2]
[348713163,1736743840356,-500.0,0.00019178,2]
[348713165,1736743840366,-627.16,0.00019178,2]
[348713167,1736743840376,-598.65,0.00019178,2]
[348713169,1736743840386,-500.0,0.00019178,2]
[348713171,1736743840395,-500.0,0.00019178,2]
[348713173,1736743840404,-500.0,0.00019178,2]
[348713175,1736743840413,-500.0,0.00019178,2]
[348713176,1736743840423,-3910.82,0.00019178,2]
[348713178,1736743840433,-500.0,0.00019178,2]
[348713180,1736743840442,-1790.14,0.00019178,2]
[348713182,1736743840451,-2667.0,0.00019178,2]
[348713185,1736743840461,-500.0,0.00019178,2]
[348713186,1736743840470,-500.0,0.00019178,2]
[348713188,1736743840479,-500.0,0.00019178,2]
[348713191,1736743840489,-500.0,0.00019178,2]
[348713192,1736743840499,-500.0,0.00019178,2]
[348713195,1736743840509,-500.0,0.00019178,2]
[348713197,1736743840519,-500.0,0.00019178,2]
[348713199,1736743840529,-500.0,0.00019178,2]
[348713201,1736743840538,-500.0,0.00019178,2]
[348713203,1736743840547,-500.0,0.00019178,2]
[348713205,1736743840557,-500.0,0.00019178,2]
[348713207,1736743840567,-500.0,0.00019178,2]
[348713209,1736743840577,-500.0,0.00019178,2]
[348713211,1736743840587,-500.0,0.00019178,2]
[348713212,1736743840596,-500.0,0.00019178,2]
[348713213,1736743840606,-500.0,0.00019178,2]
[348713214,1736743840615,-1018.62,0.00019178,2]
[348713215,1736743840625,-500.0,0.00019178,2]